Cogmind - Beta 13 @@@ ROGUE MODE // 2024.04.29 @ 13:31:44 Player: Mylar Result: Destroyed by Y-45 Defender with Beam Rifle Performance ------------- Evolutions (1) 500 Regions Visited (3) 600 Robots Destroyed (21) 105 Value Destroyed (378) 378 Prototype IDs (0) 0 Alien Tech Used (0) 0 Bonus (0) 0 TOTAL SCORE: 1583 Bonus ------- None Cogmind --------- Core Integrity 0/400 Matter 217/300 Energy 100/100 System Corruption 0% Temperature Cool (9) Movement Core (50) Location -9/Materials Parts ------- > --- POWER (1) -------- (None) > --- PROPULSION (4) --- (None) > --- UTILITY (2) ------ (None) > --- WEAPON (2) ------- (None) > --- INVENTORY (5) ---- (None) Peak State ------------ > --- POWER ------------ Light Ion Engine > --- PROPULSION ------- Flight Unit Flight Unit Flight Unit Flight Unit > --- UTILITY ---------- Signal Interpreter Seismic Detector > --- WEAPON ----------- Assault Rifle Shotgun > --- INVENTORY -------- Light Ion Engine Medium Storage Unit EM Pulse Gun [Rating: 10] Favorites ----------- Power Light Ion Engine Engine Light Ion Engine Propulsion Aluminum Leg Treads Light Treads Leg Aluminum Leg Flight Unit Flight Unit Utility Signal Interpreter Device Sensor Array Storage Small Storage Unit Processor Signal Interpreter Protection Utility Shielding Weapon Assault Rifle Energy Gun EM Pulse Gun Ballistic Gun Assault Rifle Build | -11 -10 -10 -9 ------- Run | Yrd Mat Min Mat Slots Evolved 2 | . . . 2 Power . | . . . . Propulsion 2 | . . . 2 Utility . | . . . . Weapon . | . . . . Parts Attached 43 | 6 26 5 6 Power 5 | 1 2 . 2 Engine 5 | 1 2 . 2 Core . | . . . . Reactor . | . . . . Propulsion 21 | 2 13 4 2 Treads 6 | 2 4 . . Leg 11 | . 9 2 . Wheel . | . . . . Hover . | . . . . Flight 4 | . . 2 2 Utility 10 | 1 8 . 1 Device 2 | . 1 . 1 Storage 6 | 1 5 . . Processor 1 | . 1 . . Hackware . | . . . . Protection 1 | . 1 . . Artifact . | . . . . Weapon 7 | 2 3 1 1 Energy Gun 3 | 1 2 . . Energy Cannon . | . . . . Ballistic Gun 4 | 1 1 1 1 Ballistic Cannon . | . . . . Launcher . | . . . . Special Weapon . | . . . . Impact Weapon . | . . . . Slashing Weapon . | . . . . Piercing Weapon . | . . . . Special Melee Weapon . | . . . . Unidentified Prototypes . | . . . . Parts Lost 7 | . 1 1 5 Power . | . . . . Propulsion 4 | . . 1 3 Utility 1 | . . . 1 Weapon 2 | . 1 . 1 Highest Loss Streak 5 | . 1 1 5 To Critical Strikes . | . . . . Average Slot Usage (%) 97 | . 99 98 71 Engine 13 | . 14 14 10 Treads 5 | . 6 . . Leg 19 | . 21 18 . Flight 2 | . . 8 26 Device 4 | . 2 14 9 Storage 12 | . 15 . . Processor 9 | . 8 14 9 Protection 1 | . 1 . . Energy Gun 13 | . 13 14 3 Ballistic Gun 13 | . 14 13 11 Naked Turns 17 | . . . 17 Heaviest Build 52 | 12 52 8 9 Greatest Support 40 | 40 40 20 16 Greatest Overweight (x) 2 | 1 2 . 1 Average Overweight (x) . | . . . . Largest Inventory Capacity 20 | 8 20 5 5 Average Capacity 9 | 7 10 5 5 Most Carried 20 | 8 20 5 4 Average Carried 5 | 5 6 4 2 Final Capacity 8 | 8 5 5 5 Final Carried 6 | 6 5 5 . Class Distribution -------------------- 91% | Mutant 6% | Scavenger-Mutant Dominant Class ---------------- Mutant | -10/Materials Mutant | -10/Mines Scavenger-Sprinter | -9/Materials Resources | -11 -10 -10 -9 ----------- Run | Yrd Mat Min Mat Matter Collected 790 | 238 366 173 13 Remotely . | . . . . Salvage Created 628 | . 370 192 66 Parts 43 | . 25 13 5 Haulers Intercepted . | . . . . Recyclers Shooed . | . . . . Parts Field Recycled . | . . . . Retrieved Matter . | . . . . Parts Self-Destructed . | . . . . Prevented . | . . . . Kills | -11 -10 -10 -9 ------- Run | Yrd Mat Min Mat Combat Hostiles Destroyed 15 | . 5 9 1 Guns 13 | . 4 8 1 AOE 2 | . 1 1 . Classes Destroyed 6 | . 4 . 2 Worker 1 | . . . 1 Recycler 3 | . 3 . . Watcher 2 | . 2 . . Swarmer 10 | . 3 7 . Grunt 4 | . 2 2 . Sentry 1 | . . . 1 Best Kill Streak 4 | . 4 3 1 Combat Bots Only 3 | . 3 3 1 Max Kills in Single Turn 1 | . 1 1 1 Gunslinging . | . . . . Exploded 1 | . 1 1 . Melee . | . . . . Uniques/NPCs Destroyed . | . . . . Combat | -11 -10 -10 -9 -------- Run | Yrd Mat Min Mat Hostile Shots Fired 134 | . 24 29 81 Missed 36 | . 7 9 20 Damage Taken 1284 | . 241 244 799 Core 495 | . 22 72 401 Absorbed by Shields . | . . . . Regen/Repaired (Parts) 13 | . 13 . . Core Remaining (%) 81 | 100 . 62 . Volleys Fired 84 | . 50 23 11 Largest 2 | . 2 2 2 Hottest 60 | . 60 60 60 Shots Fired 131 | . 67 42 22 Gun 131 | . 67 42 22 Cannon . | . . . . Launcher . | . . . . Special . | . . . . Kinetic 63 | . 26 19 18 Thermal . | . . . . Explosive . | . . . . Electromagnetic 68 | . 41 23 4 Robot Hit Streak 9 | . 7 9 5 Robot Miss Streak 4 | . 4 3 2 Penetration Max . | . . . . Secondary Targets 1 | . 1 . . Max Gunslinging Chain 1 | . 1 . . Shots Hit Robots 69 | . 31 26 12 Core Hits 32 | . 14 12 6 Critical Kills . | . . . . Critical Parts Destroyed 1 | . . 1 . Critical Strikes 1 | . . 1 . Destroy 1 | . . 1 . Melee Attacks . | . . . . Impact . | . . . . Slashing . | . . . . Piercing . | . . . . Sneak Attacks . | . . . . Combat Hostiles . | . . . . Follow-up Attacks . | . . . . Damage Inflicted 1088 | . 519 371 198 Guns 992 | . 458 336 198 Cannons . | . . . . Explosions 96 | . 61 35 . Melee . | . . . . Ramming . | . . . . Kinetic 472 | . 147 163 162 Thermal 96 | . 61 35 . Explosive . | . . . . Electromagnetic 520 | . 311 173 36 Impact . | . . . . Slashing . | . . . . Piercing . | . . . . Highest Corruption 4 | . 4 4 . Average Corruption 3 | . 2 4 . Corruption Purged . | . . . . Corruption Blocked . | . . . . Effects 29 | . 22 7 . Message Errors 7 | . 4 3 . Matter Fused 8 | . 7 1 . Heat Flow Errors 2 | . 2 . . Energy Discharges 6 | . 4 2 . Parts Rejected 2 | . 1 1 . Parts Fused 1 | . 1 . . Data Loss (minor) 1 | . 1 . . Data Loss (major) 1 | . 1 . . Misfires 1 | . 1 . . Overload Shots . | . . . . Overflow Damage . | . . . . Projectiles . | . . . . Explosions . | . . . . Melee . | . . . . Knockbacks . | . . . . Impact . | . . . . Kinetic . | . . . . Secondary . | . . . . Self-Inflicted Damage 74 | . 49 25 . Shots 3 | . 2 1 . Rammed . | . . . . Targets Rammed . | . . . . Kicked . | . . . . Crushed . | . . . . Highest Temperature 263 | . 263 105 23 Average Temperature 50 | . 62 56 10 Received Heat Transfer 558 | . 84 105 369 Siege Activations . | . . . . Robots Corrupted . | . . . . Combat Hostiles . | . . . . Parts Fried . | . . . . Impact Corruptions . | . . . . Robots Melted . | . . . . Combat Hostiles . | . . . . Parts Melted . | . . . . Heat Transferred 100 | . 100 . . Parts Sabotaged . | . . . . Parts Stolen . | . . . . Parts Stripped . | . . . . Power Chain Reactions 3 | . 2 1 . Alert | -11 -10 -10 -9 ------- Run | Yrd Mat Min Mat Peak Influence 272 | . 156 272 165 Initial 105 | . . 16 105 Average 61 | . 42 164 130 Maximum Alert Level 1 | . . 1 . Low Security (%) 94 | 100 100 64 100 Level 1 5 | . . 35 . Level 2 . | . . . . Level 3 . | . . . . Level 4 . | . . . . Level 5 . | . . . . High Security . | . . . . Max Security . | . . . . Squads Dispatched . | . . . . Investigation . | . . . . Extermination . | . . . . Reinforcement . | . . . . Assault . | . . . . Garrison . | . . . . Intercept . | . . . . Searches Triggered . | . . . . Construction Impeded . | . . . . Haulers Reinforced . | . . . . Active Scanning Responses . | . . . . Cargo Convoy Interrupts . | . . . . Stealth | -11 -10 -10 -9 --------- Run | Yrd Mat Min Mat Distress Signals . | . . . . Communications Jammed . | . . . . Distress Signals . | . . . . Times Spotted 26 | . 12 8 6 Peak Tracking Total 6 | . 3 3 6 Tactical Retreats 3 | . 1 2 . Traps | -11 -10 -10 -9 ------- Run | Yrd Mat Min Mat Traps Triggered 3 | . 3 . . Indirectly . | . . . . Trap Hack Attempts . | . . . . Triggered . | . . . . Disarmed . | . . . . Reprogrammed . | . . . . Reused . | . . . . Traps Extracted . | . . . . Installed . | . . . . Triggered . | . . . . Machines | -11 -10 -10 -9 ---------- Run | Yrd Mat Min Mat Machines Disabled 2 | . 2 . . Max in Single Turn 1 | . 1 . . Machines Repaired . | . . . . Machines Dismantled . | . . . . Machines Sabotaged . | . . . . Overloaded Fab Kills . | . . . . Hacking | -11 -10 -10 -9 --------- Run | Yrd Mat Min Mat Machines Accessed 8 | . 6 1 1 Terminals 6 | . 4 1 1 Fabricators . | . . . . Repair Stations 1 | . 1 . . Recycling Units 1 | . 1 . . Scanalyzers . | . . . . Garrison Access . | . . . . Total Hacks 21 | . 14 2 5 Successful 13 | . 10 . 3 Failed 8 | . 4 2 2 Catastrophic . | . . . . Database Lockouts . | . . . . Manual . | . . . . Terminals 15 | . 8 2 5 Fabricators . | . . . . Repair Stations 2 | . 2 . . Recycling Units 4 | . 4 . . Scanalyzers . | . . . . Garrison Access . | . . . . Terminal Hacks 7 | . 4 . 3 Record 1 | . 1 . . Emergency Access Points 1 | . 1 . . Alert Level 2 | . 1 . 1 Locate Traps 1 | . 1 . . Hauler Manifests 1 | . . . 1 Zone Layout 1 | . . . 1 Fabricator Hacks . | . . . . Repair Station Hacks 2 | . 2 . . Scan Component 1 | . 1 . . Repair 1 | . 1 . . Recycling Unit Hacks 4 | . 4 . . Recycle Component 2 | . 2 . . Process 1 | . 1 . . Report Inventory 1 | . 1 . . Scanalyzer . | . . . . Garrison Access Hacks . | . . . . Unauthorized Hacks . | . . . . Terminals . | . . . . Fabricators . | . . . . Repair Stations . | . . . . Recycling Units . | . . . . Scanalyzers . | . . . . Garrison Access . | . . . . Data Cores Recovered . | . . . . Used . | . . . . Hacking Detections 3 | . 2 1 . Full Trace Events . | . . . . Feedback Events . | . . . . Feedback Blocked . | . . . . Robot Schematics Acquired . | . . . . Robots Built . | . . . . Authchips . | . . . . Time . | . . . . Total Robot Build Rating . | . . . . Part Schematics Acquired . | . . . . Parts Built . | . . . . Authchips . | . . . . Time . | . . . . Total Part Build Rating . | . . . . Parts Repaired 1 | . 1 . . Time 26 | . 26 . . Parts Recycled 2 | . 2 . . Recycled Matter 74 | . 74 . . Retrieved Matter . | . . . . Retrieved Components . | . . . . Parts Scanalyzed . | . . . . Part Schematics Acquired . | . . . . Parts Damaged . | . . . . Bothacking | -11 -10 -10 -9 ------------ Run | Yrd Mat Min Mat Used RIF Installer . | . . . . Robots Hacked . | . . . . Non-combat . | . . . . Combat . | . . . . Robot Hacks Applied . | . . . . Relay Couplers Released . | . . . . Fabnet Peak Effective % . | . . . . Robots Rewired . | . . . . Allies Hacked . | . . . . Hacks Repelled . | . . . . Allies | -11 -10 -10 -9 -------- Run | Yrd Mat Min Mat Total Allies . | . . . . Largest Group . | . . . . Highest-Rated Group . | . . . . Highest-Rated Ally . | . . . . Total Orders . | . . . . Ally Attacks . | . . . . Total Damage . | . . . . Kills . | . . . . Allies Corrupted . | . . . . Allies Melted . | . . . . Intel | -11 -10 -10 -9 ------- Run | Yrd Mat Min Mat Robot Analysis Total . | . . . . Derelict Logs Recovered . | . . . . Drone Launches . | . . . . Drone Recoveries . | . . . . Exploration | -11 -10 -10 -9 ------------- Run | Yrd Mat Min Mat Turns Passed 2476 | 186 1793 352 145 Spaces Moved 1754 | 109 1106 380 159 Core 8 | 8 . . . Treads 255 | 101 154 . . Legs 1098 | . 952 146 . Wheels . | . . . . Hover . | . . . . Flight 393 | . . 234 159 Fastest Speed 31 | 50 120 37 31 Average Speed 115 | 155 137 68 49 Slowest Speed 260 | 160 260 120 120 Overloaded Moves . | . . . . Propulsion Burnouts . | . . . . Robots Hopped 1 | . . . 1 Cave-ins Triggered . | . . . . Exploration Rate (%) 38 | 7 65 68 12 Regions Visited 3 Branch Regions 1 Pre-discovered Areas . | . . . . Known Exits Taken 2 | . 1 1 . Unknown Exits Taken 1 | 1 . . . Scrap Searched 1 | . . 1 . Spaces Dug . | . . . . Terrain Destroyed 9 | . 8 1 . Melee . | . . . . Projectile . | . . . . AOE 9 | . 8 1 . Terrain Rammed . | . . . . Walls Destroyed . | . . . . Machines Disabled . | . . . . Actions | -11 -10 -10 -9 --------- Run | Yrd Mat Min Mat Total 2091 | 126 1331 428 206 Wait 70 | 1 43 8 18 Move 1749 | 108 1105 379 157 Hop 1 | . . . 1 Pick Up 77 | 11 56 7 3 Fast Attach 2 | 1 . 1 . Attach 15 | 5 6 1 3 Detach 1 | . 1 . . Swap 26 | . 20 3 3 Drop 66 | . 50 6 10 Fire 84 | . 50 23 11 Melee . | . . . . Ram . | . . . . Kick . | . . . . Crush . | . . . . Escape Stasis . | . . . . Rewire . | . . . . Trap . | . . . . Miscellaneous . | . . . . Route ------- -11/Scrapyard -10/Materials (discovered 3 exits: *Mat x2 / *Min) -10/Mines (discovered 2 exits: *Mat x2) -9/Materials History --------- Turn | Location | Event 10 | -11/Scrapyard | Discovered new exit (range 14) 187 | -11/Scrapyard | Entered Materials 345 | -10/Materials | Build established: Mutant 625 | -10/Materials | Discovered new exit (range 15) 1108 | -10/Materials | Identified exit to Materials 1315 | -10/Materials | Repaired Aluminum Leg 1358 | -10/Materials | Discovered exit to Materials (range 14) 1890 | -10/Materials | Discovered new exit (range 8) 1898 | -10/Materials | Identified exit to Mines 1980 | -10/Materials | Entered Mines 2303 | -10/Mines | Discovered exit to Materials (range 5) 2316 | -10/Mines | Discovered exit to Materials (range 10) 2332 | -10/Mines | Entered Materials 2332 | -9/Materials | Evolved 2 slots: Propulsion x2 2445 | -9/Materials | Lost 5 parts (3n1u1w) 2466 | -9/Materials | Core integrity fell below 50% 2474 | -9/Materials | Core integrity fell below 20% 2477 | -9/Materials | Destroyed by Y-45 Defender with Beam Rifle Last Messages --------------- Dropped EM Pulse Gun. Dropped Lgt. Ion Engine. Y-45 Defender destroyed. Acquired Imp. Ion Engine. Assault Rifle destroyed. Critical hit (Burn: +37). Flight Unit destroyed. Critical hit (Burn: +37). K-01 Serf collects debris. Dropped Lgt. Ion Engine. Dropped Shotgun. Acquired Lgt. Ion Engine. Dropped Lgt. Ion Engine. Dropped Flight Unit. Dropped Med. Storage Unit. Dropped Seismic Detector. Discarded Signal Interpreter. Dropped Imp. Ion Engine. Electrolysis Chamber disabled. [Achievement: First Step to Greatness] Map ----- +----------------------------------------------------+ | ?????????????????????????????????????????????????? | | ?????????????????????????????????????????????????? | | ?????????????????????????????????????????????????? | | ?????????????????????????????????????????????????? | | ?????????????????????????????????????????????????? | | ?????????????????????????????????????????????????? | | ?????????????????????????????????????????????????? | | ?????????????????????????????????????????????????? | | ?????????????????????????????????????????????????? | | ?????????????????????????????????????????????????? | | ?????????????????????????????????????????????????? | | ??????????????????????????????????????????####???? | | ?????????????????????########?????????????# #???? | | ?????????????????????# #?????????????# #???? | | ?????????????????????# """ #?????????????+ +???? | | ?????????????????????# """ #?????????????# #???? | | ?????????????????????# """ #????????????## ##??? | | ?????????????????????# #??########### #??? | | ?????????????????????# """ #### # #??? | | ?????????????????????# """ + + # #??? | | ?????????????????????# *""" # # # ### #??? | | ???????????????##????# [g # # # ####/###### | | ???????????????? #???# Y"""r/ # / ## *%! # | | ??????????????### #### """ # # # ## # | | ??????????????# # g " " # # # ## # | | ??????????????# ## *g@Y # # # ## # | | ??????????????# ######### ###### ##""" # | | ??????????????# ##"" = # | | ??????????????# ######## ##"""% # | | ??????????????## ######### ##"""[! # | | ???????????????# ? # ## * # | | ?????????????? ? # """ ##### ##### | | ?????????????! ? # """ #???###???? | | ???????????#== ? # """ #?????????? | | ???????????#== ? # ##########? | | ???????????#]] ?? # # #? | | ???????????#]] ?? # """ # """ #? | | ???????????##### ??######## """ # """ #? | | ???????????????# ?? ## """ # """ #? | | ???????????????# ?? # # #? | | ???????????????# ??? # # """ #? | | ???????????????????? """ # "T" + """ #? | | ???????????????????? """ # """ # """ #? | | ???????????????????? """ # ##### ## #? | | ????????????????????######## ######+###########? | | ????????????????????######## # #???????? | | ???????????????????? # # #???????? | | ???????????????????? """ + + #???????? | | ???????????????????? "T" # # #???????? | | ???????????????????? # ###########???????? | +----------------------------------------------------+ Best States ------------- Heat Dissipation 28 Energy Generation 12 Energy Capacity 265 Matter Stores 300 Matter Capacity 350 Sight Range 16 Robot Scan Range 14 Terrain Scan Density 10 Utility Shielding 33 Evasion (%) 63 Recoil Reduction 2 Item Schematics ----------------- None Robot Schematics ------------------ None Fabricated ------------ Nothing Alien Tech Used ----------------- None Achievements -------------- First Step to Greatness Shopping List Challenges ------------ None Game ------ Seed GravitonReactiveFacilitator Manual? 0 Play Time 01:23:32 Cumulative 83.8 hours Start 2024.04.29 @ 12:00:18 End 2024.04.29 @ 13:31:44 Sessions 1 Manual Loads 0 Difficulty Rogue Special Mode None Game No. 10 Rogue 10 Adventurer 0 Explorer 0 Win Type - Total 0 Types 0/0/0/0/0/0/0/0/0 Lore% 2 Gallery% 8 Achievement% 2 Wizard Run 0 Options --------- Layout 1 ASCII 0 Keyboard 0 Movement Mouse Keybinds 0 Fullscreen 1 Font 24/Smallcaps Map View 50x35 Zoom Use 0% Tactical HUD 0 Map Filters NONE Filters NONE Steam 1 RUN: 7369e16f-947d-45f3-a3af-d3b5a78c0a06